bitfinex/quotes_BTCUSD_20240623
["timestamp","ask_amount","ask_price","bid_price","bid_amount"]
[1719133686783,0.18050366,64512.0,64511.0,0.18936521]
[1719133687148,0.18050367,64512.0,64511.0,0.18936521]
[1719133688367,0.18050661,64512.0,64511.0,0.18936521]
[1719133690003,0.155009,64512.0,64511.0,0.18936521]
[1719133690175,0.18050782,64512.0,64511.0,0.18936521]
[1719133693104,0.155009,64512.0,64511.0,0.18936521]
[1719133693278,0.18044169,64512.0,64511.0,0.18936521]
[1719133696352,0.18065679,64512.0,64511.0,0.18936521]
[1719133697646,0.18065679,64512.0,64511.0,0.30066521]
[1719133699396,0.155009,64512.0,64511.0,0.30066521]
[1719133699625,0.18040355,64512.0,64511.0,0.30066521]
[1719133702217,0.18040355,64512.0,64511.0,0.29279612]
[1719133702419,0.155009,64512.0,64511.0,0.29279612]
[1719133702557,0.18041937,64512.0,64511.0,0.29279612]
[1719133702760,0.02541037,64512.0,64511.0,0.29279612]
[1719133704855,0.47361273,64514.0,64511.0,0.29279612]
[1719133705455,0.33385216,64514.0,64511.0,0.29279612]
[1719133705663,0.47361323,64514.0,64511.0,0.29279612]
[1719133705859,0.33385216,64514.0,64511.0,0.29279612]
[1719133706225,0.155009,64513.0,64511.0,0.29279612]
[1719133706499,0.155009,64513.0,64511.0,0.27879612]
[1719133707081,0.155009,64513.0,64511.0,0.29279612]
[1719133707374,0.155009,64513.0,64511.0,0.27879612]
[1719133707581,0.155009,64513.0,64511.0,0.26479612]
[1719133707779,0.155009,64513.0,64511.0,0.27879612]
[1719133707981,0.155009,64513.0,64511.0,0.29279612]
[1719133710884,0.155859,64513.0,64511.0,0.29279612]
[1719133713047,0.02413124,64512.0,64511.0,0.29279612]
[1719133713785,0.02413124,64512.0,64511.0,0.27879612]
[1719133713990,0.02413124,64512.0,64511.0,0.26479612]
[1719133714203,0.155859,64513.0,64511.0,0.27879612]
[1719133714419,0.155859,64513.0,64511.0,0.28849612]
[1719133715763,0.155859,64513.0,64512.0,0.00701881]
[1719133715983,0.18000153,64513.0,64512.0,0.15957993]
[1719133717133,0.18000153,64513.0,64512.0,0.17357993]
[1719133717343,0.18000153,64513.0,64512.0,0.18757993]
[1719133718442,0.17997071,64513.0,64512.0,0.18757993]
[1719133719096,0.31973061,64513.0,64512.0,0.18757993]
[1719133719308,0.17997071,64513.0,64512.0,0.18757993]
[1719133725014,0.17996315,64513.0,64512.0,0.18757993]
[1719133726135,0.37616315,64513.0,64512.0,0.18757993]
[1719133726344,0.02491614,64513.0,64512.0,0.46028893]
[1719133726543,0.00085,64513.0,64512.0,0.46028893]
[1719133726898,0.00085,64513.0,64512.0,0.47028893]
[1719133728226,0.00085,64513.0,64512.0,0.46028893]
[1719133735421,0.00085,64513.0,64512.0,0.47028893]
[1719133735582,0.00085,64513.0,64512.0,0.46028893]
[1719133737134,0.32332349,64518.0,64513.0,0.155007]
[1719133737267,0.32332068,64518.0,64514.0,0.26856112]
[1719133737481,0.0279926,64517.0,64514.0,0.27557985]
[1719133737683,0.0279926,64516.0,64514.0,0.27557985]
[1719133737863,0.32332068,64518.0,64514.0,0.27557985]
[1719133738064,0.0279926,64517.0,64514.0,0.27557985]
[1719133738306,0.0279926,64516.0,64514.0,0.27557985]
[1719133738500,0.32332068,64518.0,64514.0,0.27557985]
[1719133738720,0.0280001,64517.0,64514.0,0.27557985]
[1719133738881,0.0280001,64516.0,64514.0,0.27557985]
[1719133739081,0.34868013,64518.0,64514.0,0.27557985]
[1719133739309,0.0280001,64517.0,64514.0,0.27557985]
[1719133739488,0.0280001,64516.0,64514.0,0.27557985]
[1719133739787,0.34868013,64518.0,64514.0,0.27557985]
[1719133740000,0.34868013,64518.0,64514.0,0.28957985]
[1719133740001,0.02801098,64517.0,64514.0,0.28957985]
[1719133740378,0.34868013,64518.0,64514.0,0.30357985]
[1719133740584,0.02802432,64517.0,64514.0,0.30357985]
[1719133740790,0.02802432,64516.0,64514.0,0.28957985]
[1719133740990,0.46668013,64518.0,64514.0,0.28957985]
[1719133741141,0.02802432,64517.0,64514.0,0.30357985]
[1719133741342,0.02802432,64516.0,64514.0,0.30357985]
[1719133741545,0.34868013,64518.0,64514.0,0.30357985]
[1719133741744,0.02795592,64517.0,64514.0,0.30357985]
[1719133741946,0.34868013,64518.0,64514.0,0.30357985]
[1719133741947,0.02795592,64516.0,64514.0,0.30357985]
[1719133742152,0.0518,64517.0,64514.0,0.30357985]
[1719133742351,0.02828356,64516.0,64514.0,0.44458385]
[1719133742557,0.0518,64517.0,64514.0,0.45858385]
[1719133742749,0.02828356,64516.0,64514.0,0.45858385]
[1719133742982,0.0518,64517.0,64514.0,0.44458385]
[1719133743420,0.02828356,64516.0,64514.0,0.44458385]
[1719133743648,0.00085,64516.0,64514.0,0.45858385]
[1719133744171,0.00085,64516.0,64514.0,0.44458385]
[1719133744600,0.00085,64516.0,64515.0,0.116]
[1719133744803,0.02894442,64516.0,64515.0,0.26856112]
[1719133745023,0.02894442,64516.0,64515.0,0.2755797]
[1719133745430,0.02894442,64516.0,64515.0,0.4305817]
[1719133745806,0.02895445,64516.0,64515.0,0.7505867]
[1719133746205,0.02895445,64516.0,64515.0,0.6245867]
[1719133746412,0.02895445,64516.0,64515.0,0.8493867]
[1719133748678,0.02895445,64516.0,64515.0,0.8633867]
[1719133749081,0.00085,64516.0,64515.0,0.8633867]
[1719133749287,0.02903937,64516.0,64515.0,0.8633867]
[1719133752151,0.00085,64516.0,64515.0,0.8633867]
[1719133752999,0.02967273,64516.0,64515.0,0.8633867]
[1719133753791,0.02967687,64516.0,64515.0,0.8633867]
[1719133755400,0.02967858,64516.0,64515.0,0.8633867]
[1719133758548,0.0299975,64516.0,64515.0,0.8633867]
[1719133758985,0.0299975,64516.0,64515.0,0.7685867]
[1719133760432,0.0299975,64516.0,64515.0,0.4585817]
[1719133761468,0.00085,64516.0,64515.0,0.4585817]
[1719133761675,0.02989176,64516.0,64515.0,0.4585817]
[1719133761850,0.00085,64516.0,64515.0,0.4585817]
[1719133762496,0.02989177,64516.0,64515.0,0.4585817]
[1719133762671,0.02989177,64516.0,64515.0,0.45156312]
[1719133762876,0.02989177,64516.0,64515.0,0.4585817]
[1719133767791,0.00085,64516.0,64515.0,0.4585817]
[1719133767947,0.02913692,64516.0,64515.0,0.4585817]
[1719133768853,0.02913692,64516.0,64515.0,0.3035797]
[1719133770853,0.02917307,64516.0,64515.0,0.3035797]
[1719133771286,0.02920265,64516.0,64515.0,0.3035797]
[1719133772469,0.02920296,64516.0,64515.0,0.3035797]
[1719133774141,0.02920179,64516.0,64515.0,0.3035797]
[1719133775350,0.16895812,64516.0,64515.0,0.3035797]
[1719133777061,0.16895812,64516.0,64515.0,0.3045147]
[1719133777265,0.02921073,64516.0,64515.0,0.3045147]
[1719133780257,0.00085,64516.0,64515.0,0.3045147]
[1719133780461,0.0292495,64516.0,64515.0,0.3045147]
[1719133780667,0.00085,64516.0,64515.0,0.3045147]
[1719133780864,0.16902041,64516.0,64515.0,0.3045147]
[1719133781871,0.16901959,64516.0,64515.0,0.3045147]
[1719133783527,0.16892987,64516.0,64515.0,0.3045147]
[1719133785416,0.33166987,64516.0,64515.0,0.1885147]
[1719133785633,0.1841626,64516.0,64515.0,0.1885147]
[1719133786609,0.18329426,64516.0,64515.0,0.1885147]
[1719133788203,0.32304643,64516.0,64515.0,0.1885147]
[1719133789607,0.37482056,64516.0,64515.0,0.1885147]
[1719133790750,0.37470952,64516.0,64515.0,0.1885147]
[1719133791358,0.23496316,64516.0,64515.0,0.1885147]
[1719133791566,0.37470723,64516.0,64515.0,0.1885147]
[1719133792178,0.68470723,64516.0,64515.0,0.1885147]
[1719133792321,0.76070316,64516.0,64515.0,0.1885147]
[1719133792665,0.76070316,64516.0,64515.0,0.18149612]
[1719133792821,0.73339,64516.0,64515.0,0.18149612]
[1719133793033,0.76099122,64516.0,64515.0,0.18149612]
[1719133793236,0.75325122,64516.0,64515.0,0.18149612]
[1719133793593,0.76099122,64516.0,64515.0,0.18149612]
[1719133793734,0.75325122,64516.0,64515.0,0.18149612]
[1719133795035,0.49345122,64516.0,64515.0,0.18149612]
[1719133795280,0.68496418,64516.0,64515.0,0.1885147]
[1719133795674,0.68496344,64516.0,64515.0,0.1885147]
[1719133796043,0.51765,64516.0,64515.0,0.1885147]
[1719133796216,0.68492707,64516.0,64515.0,0.1885147]
[1719133796505,0.54521317,64516.0,64515.0,0.1885147]
[1719133796703,0.68492631,64516.0,64515.0,0.1885147]
[1719133797294,0.54521317,64516.0,64515.0,0.1885147]
[1719133797623,0.68492631,64516.0,64515.0,0.1885147]
[1719133798734,0.68452631,64516.0,64515.0,0.1885147]
[1719133798985,0.54481317,64516.0,64515.0,0.1885147]
[1719133799185,0.51725,64516.0,64515.0,0.1885147]
[1719133799410,0.54464411,64516.0,64515.0,0.1885147]
[1719133799527,0.51725,64516.0,64515.0,0.1885147]
[1719133799732,0.54464355,64516.0,64515.0,0.1885147]
[1719133800890,0.54455932,64516.0,64515.0,0.1885147]
[1719133801272,0.68426816,64516.0,64515.0,0.1885147]
[1719133801472,0.51725,64516.0,64515.0,0.1885147]
[1719133801732,0.68427167,64516.0,64515.0,0.1885147]
[1719133804589,0.51725,64516.0,64515.0,0.1885147]
[1719133804793,0.68365379,64516.0,64515.0,0.1885147]
[1719133806316,0.63185379,64516.0,64515.0,0.1885147]
[1719133807432,0.49214655,64516.0,64515.0,0.1885147]
[1719133807634,0.46545,64516.0,64515.0,0.1885147]
[1719133807835,0.4919691,64516.0,64515.0,0.1885147]
[1719133808044,0.4919691,64516.0,64515.0,0.18149612]
[1719133808045,0.17138407,64516.0,64515.0,0.18149612]
[1719133808233,0.33760894,64516.0,64515.0,0.1885147]
[1719133808952,0.64760894,64516.0,64515.0,0.1885147]
[1719133809166,0.64845894,64516.0,64515.0,0.1885147]
[1719133809370,0.50880195,64516.0,64515.0,0.18149612]
[1719133810978,0.50876892,64516.0,64515.0,0.18149612]
[1719133811473,0.64847554,64516.0,64515.0,0.18149612]
[1719133811840,0.65621554,64516.0,64515.0,0.18149612]
[1719133812696,0.91630892,64516.0,64515.0,0.18149612]
[1719133812921,1.02860892,64516.0,64515.0,0.18149612]
[1719133813124,1.33860892,64516.0,64515.0,0.028935]
[1719133813870,1.31207407,64516.0,64515.0,0.028935]
[1719133814068,1.33698323,64516.0,64515.0,0.028935]
[1719133816161,1.33698323,64516.0,64515.0,0.014935]
[1719133816803,1.33698323,64516.0,64515.0,0.028935]
[1719133817007,1.31207407,64516.0,64515.0,0.028935]
[1719133817215,1.34400148,64516.0,64515.0,0.028935]
[1719133817420,1.31207407,64516.0,64515.0,0.028935]
[1719133817594,1.34400148,64516.0,64515.0,0.028935]
[1719133818049,1.34400148,64516.0,64515.0,0.014935]
[1719133818254,1.19370148,64516.0,64515.0,0.000935]
[1719133818460,1.19370148,64516.0,64515.0,0.014935]
[1719133818666,1.33337159,64516.0,64515.0,0.028935]
[1719133818837,1.32563159,64516.0,64515.0,0.028935]
[1719133820206,1.15403407,64516.0,64515.0,0.028935]
[1719133820457,1.32547799,64516.0,64515.0,0.028935]
[1719133821266,1.18580818,64516.0,64515.0,0.028935]
[1719133821980,1.19354818,64516.0,64515.0,0.028935]
[1719133823235,1.16177407,64516.0,64515.0,0.028935]
[1719133823389,1.19352425,64516.0,64515.0,0.028935]
[1719133823593,1.18578425,64516.0,64515.0,0.028935]
[1719133824004,1.3254587,64516.0,64515.0,0.028935]
[1719133826099,1.3331987,64516.0,64515.0,0.028935]
[1719133826271,1.30145316,64516.0,64515.0,0.028935]
[1719133826526,1.01537885,64516.0,64515.0,0.028935]
[1719133826700,1.02311968,64516.0,64515.0,0.028935]
[1719133826902,1.01537968,64516.0,64515.0,0.028935]
[1719133827794,0.84403407,64516.0,64515.0,0.028935]
[1719133828002,0.87566127,64516.0,64515.0,0.028935]
[1719133828206,0.82386127,64516.0,64515.0,0.028935]
[1719133829413,0.79223407,64516.0,64515.0,0.028935]
[1719133829636,0.82419545,64516.0,64515.0,0.028935]
[1719133831065,0.96388095,64516.0,64515.0,0.028935]
[1719133831277,0.98599164,64516.0,64515.0,0.028935]
[1719133831883,0.84630614,64516.0,64515.0,0.028935]
[1719133832517,0.81434476,64516.0,64515.0,0.028935]
[1719133832730,0.85335377,64516.0,64515.0,0.028935]
[1719133835287,0.99304431,64516.0,64515.0,0.028935]
[1719133835772,0.96177645,64516.0,64515.0,0.028935]
[1719133836016,0.99305233,64516.0,64515.0,0.028935]
[1719133836239,0.95403618,64516.0,64515.0,0.028935]
[1719133836471,0.98531206,64516.0,64515.0,0.028935]
[1719133837406,0.98530527,64516.0,64515.0,0.028935]
[1719133839084,0.9852985,64516.0,64515.0,0.028935]
[1719133839786,0.9930385,64516.0,64515.0,0.028935]
[1719133839993,0.9852985,64516.0,64515.0,0.028935]
[1719133840337,1.0370985,64516.0,64515.0,0.028935]
[1719133840575,1.0448385,64516.0,64515.0,0.028935]
[1719133841154,0.90514601,64516.0,64515.0,0.028935]
[1719133841335,1.0370985,64516.0,64515.0,0.028935]
[1719133841549,0.84560601,64516.0,64515.0,0.229835]
[1719133841973,0.84547593,64516.0,64515.0,0.229835]
[1719133843071,0.84547593,64516.0,64515.0,0.143335]
[1719133845299,0.84561217,64516.0,64515.0,0.143335]
[1719133845706,0.84563675,64516.0,64515.0,0.143335]
[1719133847598,0.85337675,64516.0,64515.0,0.143335]
[1719133847797,0.84563675,64516.0,64515.0,0.143335]
[1719133848350,0.81434476,64516.0,64515.0,0.143335]
[1719133848546,0.8456254,64516.0,64515.0,0.143335]
[1719133850847,0.81434476,64516.0,64515.0,0.143335]
[1719133851016,0.84563674,64516.0,64515.0,0.143335]
[1719133851730,0.84563668,64516.0,64515.0,0.143335]
[1719133854909,0.84559124,64516.0,64515.0,0.143335]
[1719133855119,0.81434476,64516.0,64515.0,0.143335]
[1719133855333,0.84559039,64516.0,64515.0,0.143335]
[1719133856395,0.84548631,64516.0,64515.0,0.143335]
[1719133856992,0.84548631,64516.0,64515.0,0.028935]
[1719133857628,0.53548631,64516.0,64515.0,0.028935]
[1719133857826,0.50434476,64516.0,64515.0,0.028935]
[1719133858030,0.53599298,64516.0,64515.0,0.028935]
[1719133860942,0.53659991,64516.0,64515.0,0.028935]
[1719133862853,0.67629976,64516.0,64515.0,0.028935]
[1719133863019,0.53659991,64516.0,64515.0,0.028935]
[1719133863468,0.53632307,64516.0,64515.0,0.028935]
[1719133864058,0.03282831,64516.0,64515.0,0.18149612]
[1719133864327,0.03282831,64516.0,64515.0,0.38663658]
[1719133866481,0.03390156,64516.0,64515.0,0.38663658]
[1719133869573,0.03292563,64516.0,64515.0,0.38663658]
[1719133871816,0.18792563,64516.0,64515.0,0.38663658]
[1719133872295,0.18792563,64516.0,64515.0,0.29783658]
[1719133872650,0.18767855,64516.0,64515.0,0.29783658]
[1719133873057,0.18762904,64516.0,64515.0,0.29783658]
[1719133875972,0.18762916,64516.0,64515.0,0.29783658]
[1719133877001,0.69812916,64516.0,64515.0,0.18983658]
[1719133877211,0.70586916,64516.0,64515.0,0.18983658]
[1719133877416,0.49762916,64516.0,64515.0,0.18983658]
[1719133877652,0.49762916,64516.0,64515.0,0.30673658]
[1719133877867,0.49762916,64516.0,64515.0,0.29839612]
[1719133878063,0.49762916,64516.0,64515.0,0.30673658]
[1719133880579,0.21686935,64518.0,64515.0,0.30673658]
[1719133880794,0.154997,64517.0,64516.0,0.15256112]
[1719133881258,0.154997,64517.0,64516.0,0.16090154]
[1719133882027,0.464992,64517.0,64516.0,0.16090154]
[1719133884064,0.464992,64517.0,64516.0,0.18890154]
[1719133884868,0.60470098,64517.0,64516.0,0.18890154]
[1719133885072,0.46475917,64517.0,64516.0,0.18890154]
[1719133888595,0.49332727,64517.0,64516.0,0.18890154]
[1719133891285,0.46475917,64517.0,64516.0,0.18890154]
[1719133891487,0.49325589,64517.0,64516.0,0.18890154]
[1719133892964,0.4932983,64517.0,64516.0,0.18890154]
[1719133897306,0.4932983,64517.0,64516.0,0.18056112]
[1719133897858,0.49332497,64517.0,64516.0,0.18890154]
[1719133900832,0.46475917,64517.0,64516.0,0.18890154]
[1719133900945,0.49326399,64517.0,64516.0,0.18890154]
[1719133901352,0.49326403,64517.0,64516.0,0.18890154]
[1719133904019,0.46475917,64517.0,64516.0,0.18890154]
[1719133904278,0.49318649,64517.0,64516.0,0.18890154]
[1719133906487,0.49318649,64517.0,64516.0,0.18983654]
[1719133906694,0.49403649,64517.0,64516.0,0.18983654]
[1719133907245,0.18412531,64517.0,64516.0,0.18983654]
[1719133910282,0.1848263,64517.0,64516.0,0.18983654]
[1719133910713,0.15561417,64517.0,64516.0,0.18983654]
[1719133910940,0.18480145,64517.0,64516.0,0.18983654]
[1719133911143,0.15561417,64517.0,64516.0,0.18983654]
[1719133911352,0.18480135,64517.0,64516.0,0.18983654]
[1719133911986,0.15561417,64517.0,64516.0,0.18983654]
[1719133912230,0.18484189,64517.0,64516.0,0.18983654]
[1719133914017,0.18484189,64517.0,64516.0,0.17583654]
[1719133914245,0.18484189,64517.0,64516.0,0.18983654]
[1719133914477,0.18484189,64517.0,64516.0,0.17583654]
[1719133914703,0.18484189,64517.0,64516.0,0.18983654]
[1719133914935,0.18484189,64517.0,64516.0,0.17583654]
[1719133915188,0.18484189,64517.0,64516.0,0.16183654]
[1719133915449,0.18484189,64517.0,64516.0,0.18983654]
[1719133916658,0.18489632,64517.0,64516.0,0.18983654]
[1719133917112,0.18489632,64517.0,64516.0,0.19983654]
[1719133917793,0.03013215,64517.0,64516.0,0.19983654]
[1719133919559,0.00085,64517.0,64516.0,0.19983654]
[1719133919758,0.03036103,64517.0,64516.0,0.20198854]
[1719133919984,0.00085,64517.0,64516.0,0.20198854]
[1719133920185,0.03036101,64517.0,64516.0,0.20198854]
[1719133921257,0.03028894,64517.0,64516.0,0.20198854]
[1719133921447,0.03028894,64517.0,64516.0,0.19198854]
[1719133925108,0.03036951,64517.0,64516.0,0.19198854]
[1719133928366,0.03212522,64517.0,64516.0,0.19198854]
[1719133928621,0.00085,64517.0,64516.0,0.19198854]
[1719133929198,0.03215352,64517.0,64516.0,0.19198854]
[1719133929989,0.03215352,64517.0,64516.0,0.20198854]
[1719133931309,0.00085,64517.0,64516.0,0.20198854]
[1719133931544,0.03220718,64517.0,64516.0,0.20198854]
[1719133932730,0.03220718,64517.0,64516.0,0.19198854]
[1719133934517,0.00085,64517.0,64516.0,0.19198854]
[1719133934716,0.03223287,64517.0,64516.0,0.19198854]
[1719133936889,0.18722987,64517.0,64516.0,0.19198854]
[1719133937489,0.155847,64517.0,64516.0,0.19198854]
[1719133937680,0.18720322,64517.0,64516.0,0.19198854]
[1719133938117,0.18722164,64517.0,64516.0,0.19198854]
[1719133940807,0.155847,64517.0,64516.0,0.19198854]
[1719133941011,0.18747095,64517.0,64516.0,0.19198854]
[1719133943770,0.155847,64517.0,64516.0,0.19198854]
[1719133943947,0.1874003,64517.0,64516.0,0.19198854]
[1719133946790,0.155847,64517.0,64516.0,0.19198854]
[1719133947001,0.18800948,64517.0,64516.0,0.19198854]
[1719133947180,0.155847,64517.0,64516.0,0.19198854]
[1719133947382,0.18800948,64517.0,64516.0,0.19198854]
[1719133948419,0.18772254,64517.0,64516.0,0.19198854]
[1719133948765,0.03272554,64517.0,64516.0,0.20198854]
[1719133949056,0.03272554,64517.0,64516.0,0.41008854]
[1719133949205,0.03272554,64517.0,64516.0,0.56508854]
[1719133950028,0.00085,64517.0,64516.0,0.56508854]
[1719133950227,0.03305839,64517.0,64516.0,0.56508854]
[1719133951290,0.03305839,64517.0,64516.0,0.53708854]
[1719133951477,0.03305839,64517.0,64516.0,0.55108854]
[1719133951758,0.03305839,64517.0,64516.0,0.56508854]
[1719133951989,0.03305839,64517.0,64516.0,0.55108854]
[1719133952440,0.03305839,64517.0,64516.0,0.56508854]
[1719133954910,0.03305839,64517.0,64516.0,0.86508854]
[1719133955135,0.00085,64517.0,64516.0,1.23688854]
[1719133955581,0.11727621,64517.0,64516.0,1.23688854]
[1719133956245,0.00085,64517.0,64516.0,1.23688854]
[1719133956459,0.11727612,64517.0,64516.0,1.22288854]
[1719133956671,0.00085,64517.0,64516.0,1.22288854]
[1719133956911,0.06726323,64517.0,64516.0,1.22288854]
[1719133957110,0.06726323,64517.0,64516.0,1.20888854]
[1719133957334,0.06726323,64517.0,64516.0,1.22288854]
[1719133957779,0.03015677,64522.0,64519.0,0.01]
[1719133958009,0.03015677,64522.0,64520.0,0.26806112]
[1719133958230,0.03015677,64522.0,64520.0,0.27730347]
[1719133960490,0.03015677,64522.0,64520.0,0.29130347]
[1719133961073,0.27480154,64524.0,64520.0,0.29130347]
[1719133961274,0.03178792,64523.0,64520.0,0.29130347]
[1719133961473,0.154981,64524.0,64520.0,0.27730347]
[1719133961674,0.03176792,64523.0,64520.0,0.29130347]
[1719133961957,0.154981,64524.0,64520.0,0.30530347]
[1719133962163,0.03176791,64523.0,64520.0,0.27730347]
[1719133962363,0.154981,64524.0,64520.0,0.27730347]
[1719133962487,0.154981,64524.0,64520.0,0.29130347]
[1719133962692,0.03172536,64523.0,64520.0,0.27730347]
[1719133962889,0.154981,64524.0,64520.0,0.27730347]
[1719133963149,0.03172535,64523.0,64520.0,0.27730347]
[1719133963313,0.154981,64524.0,64520.0,0.27730347]
[1719133963521,0.03186361,64523.0,64520.0,0.27730347]
[1719133963735,0.18235791,64524.0,64520.0,0.27730347]
[1719133963949,0.03186361,64523.0,64520.0,0.27730347]
[1719133964127,0.18235791,64524.0,64520.0,0.29130347]
[1719133964300,0.03186361,64523.0,64520.0,0.30530347]
[1719133964526,0.18235791,64524.0,64520.0,0.30530347]
[1719133964735,0.03182437,64523.0,64520.0,0.29130347]
[1719133964957,0.18235791,64524.0,64520.0,0.30530347]
[1719133965187,0.03182436,64523.0,64520.0,0.30530347]
[1719133965333,0.18235791,64524.0,64520.0,0.30530347]
[1719133965519,0.03182716,64523.0,64520.0,0.29130347]
[1719133965724,0.18235791,64524.0,64520.0,0.29130347]
[1719133965924,0.03182716,64523.0,64520.0,0.30530347]
[1719133966130,0.18235791,64524.0,64520.0,0.29130347]
[1719133966333,0.03182716,64523.0,64520.0,0.29130347]
[1719133966537,0.18235791,64524.0,64520.0,0.29130347]
[1719133966756,0.03182318,64523.0,64520.0,0.27730347]
[1719133966991,0.18235791,64524.0,64520.0,0.29130347]
[1719133967429,0.03182318,64523.0,64520.0,0.27730347]
[1719133967623,0.18235791,64524.0,64520.0,0.29130347]
[1719133967829,0.03182459,64523.0,64520.0,0.30530347]
[1719133968043,0.18235791,64524.0,64520.0,0.30530347]
[1719133968207,0.03182459,64523.0,64520.0,0.29130347]
[1719133968411,0.18235791,64524.0,64520.0,0.29130347]
[1719133968606,0.03181966,64523.0,64520.0,0.29130347]
[1719133968826,0.18235791,64524.0,64520.0,0.30530347]
[1719133969032,0.03181966,64523.0,64520.0,0.29130347]
[1719133969197,0.18235791,64524.0,64520.0,0.29130347]
[1719133969399,0.03181966,64523.0,64520.0,0.30530347]
[1719133969632,0.18235791,64524.0,64520.0,0.30530347]
[1719133969835,0.03182035,64523.0,64520.0,0.30530347]
[1719133970040,0.18235791,64524.0,64520.0,0.29130347]
[1719133970237,0.03182035,64523.0,64520.0,0.29130347]
[1719133970459,0.18235791,64524.0,64520.0,0.30530347]
[1719133970719,0.18235791,64524.0,64520.0,0.46029147]
[1719133970720,0.03181101,64523.0,64520.0,0.46029147]
[1719133970957,0.02737691,64524.0,64521.0,0.1114]
[1719133971085,0.03181101,64523.0,64522.0,0.15256112]
[1719133971289,0.29459637,64525.0,64522.0,0.16180339]
[1719133971290,0.29459061,64525.0,64522.0,0.16180339]
[1719133971499,0.18995469,64525.0,64522.0,0.16180339]
[1719133971703,0.18221469,64525.0,64522.0,0.16180339]
[1719133972307,0.18995469,64525.0,64522.0,0.16180339]
[1719133972571,0.154981,64524.0,64522.0,0.16180339]
[1719133972801,0.154981,64524.0,64522.0,0.17580339]
[1719133973608,0.154981,64524.0,64522.0,0.18980339]
[1719133973814,0.00085,64523.0,64522.0,0.18980339]
[1719133974161,0.00085,64523.0,64522.0,0.16180339]
[1719133974366,0.00085,64523.0,64522.0,0.18980339]
[1719133975007,0.00085,64523.0,64522.0,0.17580339]
[1719133975228,0.00085,64523.0,64522.0,0.18980339]
[1719133975648,0.00085,64523.0,64522.0,0.20380339]
[1719133978342,0.00085,64523.0,64522.0,0.40940339]
[1719133979800,0.00085,64523.0,64522.0,0.31520339]
[1719133979999,0.00085,64523.0,64522.0,0.30120339]
[1719133980563,0.00085,64523.0,64522.0,0.28720339]
[1719133981534,0.00085,64523.0,64522.0,0.30120339]
[1719133984417,0.00085,64523.0,64522.0,0.18980339]
[1719133985795,0.00085,64523.0,64522.0,0.30120339]
[1719133986054,0.00085,64523.0,64522.0,0.30142339]
[1719133986284,0.03262263,64523.0,64522.0,0.30142339]
[1719133986921,0.00085,64523.0,64522.0,0.30142339]
[1719133990352,0.0325131,64523.0,64522.0,0.30142339]
[1719133991341,0.1874961,64523.0,64522.0,0.30142339]
[1719133991540,0.1874961,64523.0,64522.0,0.19002339]
[1719133993322,0.155833,64523.0,64522.0,0.19002339]
[1719133993537,0.18709283,64523.0,64522.0,0.19002339]
[1719133993717,0.21836898,64523.0,64522.0,0.19260039]
[1719133993965,0.18710915,64523.0,64522.0,0.19260039]
[1719133996446,0.155833,64523.0,64522.0,0.19260039]
[1719133996659,0.1870015,64523.0,64522.0,0.19260039]
[1719133998461,0.4969675,64523.0,64522.0,0.19260039]
[1719133999645,0.49724078,64523.0,64522.0,0.19260039]
[1719134000228,0.63688495,64523.0,64522.0,0.19260039]
[1719134002829,0.6054952,64523.0,64522.0,0.19260039]
[1719134003044,0.49707606,64523.0,64522.0,0.19260039]
[1719134003255,0.63677215,64523.0,64522.0,0.18335812]
[1719134003430,0.63677215,64523.0,64522.0,0.1926636]
[1719134003804,0.3632544,64523.0,64522.0,0.1926636]
[1719134005008,0.6732204,64523.0,64522.0,0.1926636]
[1719134006041,0.67324195,64523.0,64522.0,0.1926636]
[1719134009046,0.6732589,64523.0,64522.0,0.1926636]
[1719134012135,0.64194389,64523.0,64522.0,0.1926636]
[1719134012360,0.67327081,64523.0,64522.0,0.1926636]
[1719134012569,0.50224725,64523.0,64522.0,0.1926636]
[1719134012913,0.67327066,64523.0,64522.0,0.1926636]
[1719134014427,0.53357417,64523.0,64522.0,0.1926636]
[1719134015513,0.53357709,64523.0,64522.0,0.1926636]
[1719134017976,0.53357709,64523.0,64522.0,0.18335812]
[1719134018437,0.53357709,64523.0,64522.0,0.1926636]
[1719134018683,0.53373836,64523.0,64522.0,0.1926636]
[1719134020561,0.53373836,64523.0,64522.0,0.4192636]
[1719134021718,0.50224725,64523.0,64522.0,0.4192636]
[1719134021969,0.5337617,64523.0,64522.0,0.4192636]
[1719134022209,0.50224725,64523.0,64522.0,0.4192636]
[1719134022445,0.53372368,64523.0,64522.0,0.4192636]
[1719134024188,0.54146368,64523.0,64522.0,0.4192636]
[1719134024832,0.50998725,64523.0,64522.0,0.4192636]
[1719134025043,0.54144365,64523.0,64522.0,0.4192636]
[1719134025977,0.53370365,64523.0,64522.0,0.4192636]
[1719134027845,0.50224725,64523.0,64522.0,0.4192636]
[1719134028015,0.53365704,64523.0,64522.0,0.4192636]
[1719134030973,0.50224725,64523.0,64522.0,0.4192636]
[1719134031607,0.53367232,64523.0,64522.0,0.4192636]
[1719134032633,0.50224725,64523.0,64522.0,0.4192636]
[1719134032862,0.53347485,64523.0,64522.0,0.4192636]
[1719134034266,0.53334362,64523.0,64522.0,0.4192636]
[1719134037480,0.53335333,64523.0,64522.0,0.4192636]
[1719134038070,0.20775977,64523.0,64522.0,0.4192636]
[1719134038269,0.51772577,64523.0,64522.0,0.4192636]
[1719134039418,0.20775977,64523.0,64522.0,0.4192636]
[1719134041047,0.20781805,64523.0,64522.0,0.4192636]
[1719134042294,0.20778886,64523.0,64522.0,0.4192636]
[1719134042952,0.17665369,64523.0,64522.0,0.4192636]
[1719134043167,0.20778886,64523.0,64522.0,0.4192636]
[1719134046156,0.20779771,64523.0,64522.0,0.4192636]
[1719134049220,0.20788759,64523.0,64522.0,0.4192636]
[1719134050119,0.0312339,64523.0,64522.0,0.4192636]
[1719134050726,0.29470407,64524.0,64522.0,0.4192636]
[1719134050956,0.03125875,64523.0,64522.0,0.4192636]
[1719134051531,0.03125875,64523.0,64522.0,0.4052636]
[1719134051944,0.03125875,64523.0,64522.0,0.4192636]
[1719134052358,0.03111613,64523.0,64522.0,0.4052636]
[1719134052787,0.03111613,64523.0,64522.0,0.4192636]
[1719134055527,0.03105299,64523.0,64522.0,0.4192636]
[1719134056698,0.17078517,64523.0,64522.0,0.4192636]
[1719134058577,0.17088915,64523.0,64522.0,0.4192636]
[1719134058979,0.13974146,64523.0,64522.0,0.4192636]
[1719134059181,0.17088916,64523.0,64522.0,0.4192636]
[1719134060345,0.13974754,64523.0,64522.0,0.4192636]
[1719134060546,0.1709537,64523.0,64522.0,0.4192636]
[1719134061927,0.17098025,64523.0,64522.0,0.4192636]
[1719134063729,0.03123024,64523.0,64522.0,0.4192636]
[1719134064970,0.03128271,64524.0,64522.0,0.4192636]
[1719134065167,0.03128271,64523.0,64522.0,0.4192636]
[1719134065823,0.1710256,64523.0,64522.0,0.4052636]
[1719134066137,0.1710256,64523.0,64522.0,0.4192636]